fUST/lending_fUST_20250625
["ID","MTS","AMOUNT","RATE_DAILY","PERIOD"]
[367516860,1750840239503,-460.0,0.00017416,2]
[367516861,1750840239512,-556.41,0.00017416,2]
[367516862,1750840239521,-2535.9,0.00017416,2]
[367516863,1750840239531,-460.0,0.00017417,2]
[367516864,1750840239540,-606.63,0.00017417,2]
[367516865,1750840239549,-460.0,0.00017417,2]
[367516866,1750840239559,-460.0,0.00017417,2]
[367516867,1750840239569,-460.0,0.00017417,2]
[367516868,1750840239579,-518.73,0.00017417,2]
[367516869,1750840239588,-542.7,0.00017417,2]
[367516870,1750840239598,-261.03,0.00017417,2]
[367516871,1750840239608,-7498.48,0.00017417,2]
[367516872,1750840239618,-263.9953515,0.00017417,2]
[367516873,1750840239627,-460.0,0.00017417,2]
[367516874,1750840239637,-494.56,0.00017417,2]
[367516875,1750840239647,-938.35,0.00017417,2]
[367516876,1750840239659,-460.0,0.00017418,2]
[367516877,1750840239668,-500.15,0.00017418,2]
[367516878,1750840239678,-460.0,0.00017418,2]
[367516879,1750840239689,-460.0,0.00017418,2]
[367516880,1750840239700,-581.55,0.00017418,2]
[367516881,1750840239710,-460.0,0.00017418,2]
[367516882,1750840239719,-693.84,0.00017418,2]
[367516883,1750840239729,-460.0,0.00017418,2]
[367516884,1750840239740,-460.0,0.00017418,2]
[367516885,1750840239750,-486.8,0.00017418,2]
[367516887,1750840239760,-4900.23,0.00017418,2]
[367516890,1750840239769,-533.08,0.00017418,2]
[367516891,1750840239780,-460.0,0.00017418,2]
[367516892,1750840239793,-513.75,0.00017418,2]
[367516893,1750840239803,-460.0,0.00017418,2]
[367516894,1750840239812,-460.0,0.00017418,2]
[367516895,1750840239822,-460.0,0.00017418,2]
[367516896,1750840239831,-460.0,0.0001742,2]
[367516897,1750840239842,-460.0,0.0001742,2]
[367516898,1750840239852,-500.0,0.00017463,2]
[367516899,1750840239863,-500.0,0.00017463,2]
[367516900,1750840239874,-501.79326718,0.00017489,2]
[367516901,1750840239884,-500.0,0.00017494,2]
[367516902,1750840239894,-616.43079525,0.0001753,2]
[367516903,1750840239904,-500.0,0.0001753,2]
[367516904,1750840239914,-500.0,0.00017538,2]
[367516905,1750840239924,-500.0,0.00017547,2]
[367516906,1750840239934,-500.0,0.00017581,2]
[367516907,1750840239944,-500.0,0.00017605,2]
[367516908,1750840239954,-500.0,0.00017605,2]
[367516909,1750840239964,-503.37578405,0.00017605,2]
[367516910,1750840239973,-500.0,0.00017605,2]
[367516911,1750840239982,-500.0,0.0001761,2]
[367516912,1750840239993,-500.53695718,0.0001761,2]
[367516913,1750840240003,-490.69,0.0001769,2]
[367516914,1750840240012,-1865.62,0.0001769,2]
[367516915,1750840240022,-677.74,0.0001769,2]
[367516916,1750840240031,-2993.54,0.0001769,2]
[367516917,1750840240042,-460.0,0.0001769,2]
[367516918,1750840240051,-460.0,0.0001769,2]
[367516919,1750840240063,-2535.9,0.0001769,2]
[367516920,1750840240072,-460.0,0.00017691,2]
[367516921,1750840240082,-606.63,0.00017691,2]
[367516922,1750840240091,-460.0,0.00017691,2]
[367516923,1750840240100,-460.0,0.00017691,2]
[367516924,1750840240110,-507.70602298,0.00017691,2]
[367516925,1750840240119,-518.73,0.00017691,2]
[367516926,1750840240128,-542.7,0.00017691,2]
[367516927,1750840240138,-7498.48,0.00017691,2]
[367516928,1750840240147,-460.0,0.00017691,2]
[367516929,1750840240156,-494.56,0.00017691,2]
[367516930,1750840240166,-938.35,0.00017691,2]
[367516931,1750840240175,-285.55766857,0.00017692,2]
[367516932,1750840240185,-460.0,0.00017692,2]
[367516933,1750840240194,-460.0,0.00017692,2]
[367516934,1750840240204,-693.84,0.00017692,2]
[367516935,1750840240213,-366.43153139,0.00017692,2]
[367516936,1750840240222,-460.0,0.00017692,2]
[367516937,1750840240232,-486.8,0.00017692,2]
[367516938,1750840240242,-4900.23,0.00017692,2]
[367516939,1750840240251,-533.08,0.00017692,2]
[367516940,1750840240260,-513.75,0.00017692,2]
[367516941,1750840240269,-460.0,0.00017692,2]
[367516942,1750840240279,-460.0,0.00017692,2]
[367516943,1750840240289,-460.0,0.00017692,2]
[367516944,1750840240298,-460.0,0.00017694,2]
[367516945,1750840240308,-460.0,0.00017694,2]
[367516946,1750840240317,-500.0,0.000177,2]
[367516947,1750840240326,-500.0,0.000177,2]
[367516948,1750840240336,-500.0,0.000177,2]
[367516949,1750840240344,-500.0,0.000177,2]
[367516950,1750840240354,-500.0,0.000177,2]
[367516951,1750840240363,-500.0,0.000177,2]
[367516952,1750840240372,-328.21375464,0.00017722,2]
[367516953,1750840240382,-218.55488821,0.00017767,2]
[367516954,1750840240391,-2015.18560391,0.000179,2]
[367516955,1750840240400,-180.00180002,0.00017944,2]
[367516956,1750840240410,-490.69,0.00017964,2]
[367516957,1750840240420,-1865.62,0.00017964,2]
[367516958,1750840240429,-677.74,0.00017964,2]
[367516959,1750840240438,-2993.54,0.00017964,2]
[367516960,1750840240447,-460.0,0.00017964,2]
[367516961,1750840240457,-460.0,0.00017964,2]
[367516962,1750840240466,-2535.9,0.00017964,2]
[367516963,1750840240475,-460.0,0.00017965,2]
[367516964,1750840240484,-606.63,0.00017965,2]
[367516965,1750840240494,-508.90567286,0.00017965,2]
[367516966,1750840240505,-460.0,0.00017965,2]
[367516967,1750840240514,-518.73,0.00017965,2]
[367516968,1750840240523,-542.7,0.00017965,2]
[367516969,1750840240534,-7498.48,0.00017965,2]
[367516970,1750840240544,-460.0,0.00017965,2]
[367516971,1750840240554,-494.56,0.00017965,2]
[367516972,1750840240565,-938.35,0.00017965,2]
[367516973,1750840240575,-460.0,0.00017966,2]
[367516974,1750840240586,-460.0,0.00017966,2]
[367516975,1750840240595,-693.84,0.00017966,2]
[367516976,1750840240604,-460.0,0.00017966,2]
[367516977,1750840240614,-486.8,0.00017966,2]
[367516978,1750840240623,-4900.23,0.00017966,2]
[367516979,1750840240632,-533.08,0.00017966,2]
[367516980,1750840240642,-513.75,0.00017966,2]
[367516981,1750840240651,-460.0,0.00017966,2]
[367516982,1750840240661,-460.0,0.00017966,2]
[367516983,1750840240671,-460.0,0.00017966,2]
[367516984,1750840240681,-460.0,0.00017968,2]
[367516985,1750840240689,-460.0,0.00017968,2]
[367516986,1750840240699,-327.76380636,0.00017975,2]
[367516987,1750840240708,-367.57,0.00018,2]
[367516988,1750840240717,-367.57,0.00018,2]
[367516989,1750840240727,-367.57,0.00018,2]
[367516990,1750840240736,-1582.79296973,0.00018,2]
[367516991,1750840240752,-2547.20648903,0.00018,2]
[367516992,1750840240770,-460.0,0.00016871,2]
[367516993,1750840240780,-23.2568244,0.00018,2]
[367516994,1750840240802,-9268.75183802,0.00018,2]
[367516995,1750840240812,-2203.22939458,0.00018,2]
[367516996,1750840240821,-505.50970793,0.00018011,2]
[367516997,1750840240831,-1000.0,0.00018011,2]
[367516998,1750840240839,-500.0,0.00018086,2]
[367516999,1750840240849,-5000.0,0.00018086,2]
[367517000,1750840240857,-724.76405365,0.00018086,2]
[367517002,1750840240866,-500.0,0.00018086,2]
[367517003,1750840240876,-245.0,0.00018086,2]
[367517005,1750840240885,-500.0,0.00018086,2]
[367517007,1750840240894,-500.0,0.00018086,2]
[367517009,1750840240904,-500.0,0.00018086,2]
[367517010,1750840240913,-500.0,0.00018086,2]
[367517011,1750840240923,-500.0,0.00018086,2]
[367517013,1750840240932,-25000.0,0.00018086,2]
[367517014,1750840240942,-500.0,0.00018086,2]
[367517016,1750840240951,-500.0,0.00018086,2]
[367517018,1750840240960,-2371.42907481,0.00018086,2]
[367517020,1750840240969,-500.0,0.00018086,2]
[367517022,1750840240978,-500.0,0.00018086,2]
[367517023,1750840240987,-207.4,0.00018086,2]
[367517024,1750840240998,-3440.09265388,0.00018115,2]
[367517025,1750840241007,-2015.18560391,0.00018141,2]
[367517026,1750840241016,-500.0,0.00018153,2]
[367517028,1750840241025,-490.69,0.00018238,2]
[367517029,1750840241034,-1865.62,0.00018238,2]
[367517030,1750840241043,-677.74,0.00018238,2]
[367517031,1750840241052,-2993.54,0.00018238,2]
[367517032,1750840241062,-460.0,0.00018238,2]
[367517033,1750840241071,-460.0,0.00018238,2]
[367517034,1750840241080,-2535.9,0.00018238,2]
[367517035,1750840241089,-460.0,0.00018239,2]
[367517036,1750840241100,-606.63,0.00018239,2]
[367517037,1750840241110,-40.51946747,0.00018239,2]
[367517038,1750840241326,-460.0,0.00017145,2]
[367517039,1750840241335,-460.0,0.00017419,2]
[367517040,1750840241345,-272.0,0.00017581,2]
[367517041,1750840241354,-409.01,0.00017681,3]
[367517042,1750840241364,-419.48053253,0.00018239,2]
[367517043,1750840241373,-518.73,0.00018239,2]
[367517044,1750840241382,-542.7,0.00018239,2]
[367517045,1750840241392,-2268.13395521,0.00018239,2]
[367517067,1750840246235,-724.67,0.00016868,2]
[367517068,1750840246246,-460.0,0.00016869,2]
[367517070,1750840246255,-500.0,0.0001687,2]
[367517072,1750840246265,-500.0,0.0001687,2]
[367517073,1750840246274,-500.0,0.0001687,2]
[367517075,1750840246284,-500.0,0.0001687,2]
[367517077,1750840246293,-500.0,0.0001687,2]
[367517078,1750840246303,-460.0,0.0001687,2]
[367517079,1750840246312,-500.0,0.0001687,2]
[367517080,1750840246321,-500.0,0.0001687,2]
[367517081,1750840246330,-500.0,0.0001687,2]
[367517082,1750840246339,-500.0,0.0001687,2]
[367517083,1750840246348,-500.0,0.0001687,2]
[367517084,1750840246357,-724.67,0.00017142,2]
[367517085,1750840246366,-460.0,0.00017143,2]
[367517086,1750840246375,-460.0,0.00017144,2]
[367517087,1750840246384,-724.67,0.00017416,2]
[367517088,1750840246394,-460.0,0.00017417,2]
[367517089,1750840246403,-460.0,0.00017418,2]
[367517090,1750840246412,-230.0,0.00017581,2]
[367517091,1750840246420,-724.67,0.0001769,2]
[367517092,1750840246430,-460.0,0.00017692,2]
[367517093,1750840246439,-724.67,0.00017964,2]
[367517094,1750840246448,-460.0,0.00017966,2]
[367517095,1750840246457,-230.0,0.00018081,2]
[367517096,1750840246466,-724.67,0.00018238,2]
[367517097,1750840246476,-5230.34604479,0.00018239,2]
[367517098,1750840246485,-460.0,0.00018239,2]
[367517099,1750840246496,-494.56,0.00018239,2]
[367517100,1750840246505,-938.35,0.00018239,2]
[367517101,1750840246514,-296.78206986,0.0001824,2]
[367517102,1750840246524,-460.0,0.0001824,2]
[367517103,1750840246533,-693.84,0.0001824,2]
[367517104,1750840246542,-460.0,0.0001824,2]
[367517105,1750840246551,-486.8,0.0001824,2]
[367517106,1750840246560,-4900.23,0.0001824,2]
[367517107,1750840246569,-533.08,0.0001824,2]
[367517108,1750840246578,-513.75,0.0001824,2]
[367517109,1750840246587,-460.0,0.0001824,2]
[367517110,1750840246597,-460.0,0.0001824,2]
[367517111,1750840246607,-460.0,0.0001824,2]
[367517112,1750840246616,-460.0,0.0001824,2]
[367517113,1750840246625,-12558.06783089,0.0001824,2]
[367517114,1750840246635,-213.69531788,0.0001824,2]
[367517115,1750840246643,-160.0,0.0001824,2]
[367517116,1750840246652,-524.21181985,0.0001824,2]
[367517117,1750840246661,-425.18553072,0.0001824,2]
[367517118,1750840246670,-160.0,0.0001824,2]
[367517119,1750840246679,-160.0,0.0001824,2]
[367517120,1750840246689,-160.0,0.0001824,2]
[367517121,1750840246698,-836.86812089,0.0001824,2]
[367517122,1750840246708,-230.22714675,0.0001824,2]
[367517123,1750840246718,-846.80634355,0.0001824,2]
[367517124,1750840246727,-460.0,0.00018242,2]
[367517125,1750840246736,-1000.0,0.00018248,2]
[367517126,1750840246747,-2015.18560391,0.00018383,2]
[367517127,1750840246756,-151.0,0.000184,2]
[367517128,1750840246766,-420.0,0.00018425,2]
[367517129,1750840246775,-420.0,0.00018426,2]
[367517130,1750840246788,-490.69,0.00018512,2]
[367517131,1750840246798,-1865.62,0.00018512,2]
[367517132,1750840246807,-677.74,0.00018512,2]
[367517133,1750840246824,-2993.54,0.00018512,2]
[367517134,1750840246834,-460.0,0.00018512,2]
[367517135,1750840246843,-460.0,0.00018512,2]
[367517136,1750840246852,-2535.9,0.00018512,2]
[367517137,1750840246861,-724.67,0.00018512,2]
[367517138,1750840246871,-606.63,0.00018513,2]
[367517139,1750840246880,-460.0,0.00018513,2]
[367517140,1750840246889,-518.73,0.00018513,2]
[367517141,1750840246898,-542.7,0.00018513,2]
[367517142,1750840246907,-7498.48,0.00018513,2]
[367517143,1750840246916,-460.0,0.00018513,2]
[367517144,1750840246926,-494.56,0.00018513,2]
[367517145,1750840246935,-938.35,0.00018513,2]
[367517146,1750840246945,-460.0,0.00018514,2]
[367517147,1750840246954,-693.84,0.00018514,2]
[367517148,1750840246964,-460.0,0.00018514,2]
[367517149,1750840246973,-486.8,0.00018514,2]
[367517150,1750840246982,-4900.23,0.00018514,2]
[367517151,1750840246993,-533.08,0.00018514,2]
[367517152,1750840247002,-513.75,0.00018514,2]
[367517153,1750840247011,-460.0,0.00018514,2]
[367517154,1750840247020,-448.58313223,0.00018514,2]
[367517155,1750840247030,-460.0,0.00018514,2]
[367517156,1750840247039,-460.0,0.00018514,2]
[367517157,1750840247048,-460.0,0.00018516,2]
[367517158,1750840247057,-1680.0,0.00018517,2]
[367517159,1750840247067,-1500.0,0.00018559,2]
[367517160,1750840247077,-2015.18560391,0.00018624,2]
[367517161,1750840247086,-5000.0,0.00018634,2]
[367517162,1750840247096,-218.55488821,0.00018764,2]
[367517163,1750840247105,-490.69,0.00018786,2]
[367517164,1750840247115,-1865.62,0.00018786,2]
[367517165,1750840247124,-677.74,0.00018786,2]
[367517166,1750840247134,-2993.54,0.00018786,2]
[367517167,1750840247143,-460.0,0.00018786,2]
[367517168,1750840247152,-460.0,0.00018786,2]
[367517169,1750840247161,-2535.9,0.00018786,2]
[367517170,1750840247170,-724.67,0.00018786,2]
[367517171,1750840247180,-606.63,0.00018787,2]
[367517172,1750840247190,-460.0,0.00018787,2]
[367517173,1750840247199,-518.73,0.00018787,2]
[367517174,1750840247208,-542.7,0.00018787,2]
[367517175,1750840247218,-7498.48,0.00018787,2]
[367517176,1750840247227,-460.0,0.00018787,2]
[367517177,1750840247236,-494.56,0.00018787,2]
[367517179,1750840247247,-938.35,0.00018787,2]
[367517181,1750840247257,-460.0,0.00018788,2]
[367517183,1750840247266,-693.84,0.00018788,2]
[367517184,1750840247276,-460.0,0.00018788,2]
[367517185,1750840247285,-486.8,0.00018788,2]
[367517186,1750840247295,-4900.23,0.00018788,2]
[367517187,1750840247305,-533.08,0.00018788,2]
[367517188,1750840247314,-513.75,0.00018788,2]
[367517189,1750840247324,-460.0,0.00018788,2]
[367517190,1750840247334,-296.24,0.00018788,2]
[367517191,1750840247344,-460.0,0.00018788,2]
[367517192,1750840247353,-460.0,0.0001879,2]
[367517193,1750840247364,-151.0,0.000188,2]
[367517194,1750840247373,-737.824,0.00018808,2]
[367517195,1750840247382,-2015.18560391,0.00018866,2]
[367517196,1750840247392,-851.27675014,0.000189,2]
[367517197,1750840247401,-3440.09265388,0.0001891,2]
[367517198,1750840247410,-1005.57574419,0.00019,2]
[367517199,1750840247420,-818.02,0.00019051,3]
[367517200,1750840247429,-490.69,0.0001906,2]
[367517201,1750840247439,-1865.62,0.0001906,2]
[367517202,1750840247448,-677.74,0.0001906,2]
[367517203,1750840247457,-2993.54,0.0001906,2]
[367517204,1750840247467,-460.0,0.0001906,2]
[367517205,1750840247475,-460.0,0.0001906,2]
[367517206,1750840247485,-2535.9,0.0001906,2]
[367517207,1750840247496,-724.67,0.0001906,2]
[367517208,1750840247506,-606.63,0.00019061,2]
[367517209,1750840247516,-460.0,0.00019061,2]
[367517210,1750840247525,-518.73,0.00019061,2]
[367517211,1750840247535,-542.7,0.00019061,2]
[367517212,1750840247545,-7498.48,0.00019061,2]
[367517213,1750840247554,-454.78290893,0.00019061,2]
[367517214,1750840247564,-494.56,0.00019061,2]
[367517215,1750840247574,-938.35,0.00019061,2]
[367517216,1750840247584,-460.0,0.00019062,2]
[367517217,1750840247594,-693.84,0.00019062,2]
[367517218,1750840247605,-460.0,0.00019062,2]
[367517219,1750840247615,-486.8,0.00019062,2]
[367517220,1750840247626,-4900.23,0.00019062,2]
[367517221,1750840247636,-533.08,0.00019062,2]
[367517222,1750840247646,-513.75,0.00019062,2]
[367517223,1750840247656,-460.0,0.00019062,2]
[367517224,1750840247665,-460.0,0.00019062,2]
[367517225,1750840247674,-460.0,0.00019064,2]
[367517226,1750840247684,-1608.0,0.00019088,2]
[367517227,1750840247693,-2015.18560391,0.00019107,2]
[367517228,1750840247703,-2000.0,0.00019107,2]
[367517229,1750840247713,-500.0,0.00019164,2]
[367517230,1750840247723,-1489.5570251,0.00019177,2]
[367517231,1750840247733,-187.2774326,0.00019178,2]
[367517232,1750840247744,-456.363144,0.00019178,2]
[367517233,1750840247753,-5000.0,0.00019182,2]
[367517234,1750840247763,-151.0,0.000192,2]
[367517235,1750840247773,-100000.0,0.00019329,2]
[367517236,1750840247783,-490.69,0.00019334,2]
[367517237,1750840247796,-1865.62,0.00019334,2]
[367517238,1750840247806,-677.74,0.00019334,2]
[367517239,1750840247815,-2993.54,0.00019334,2]
[367517240,1750840247824,-460.0,0.00019334,2]
[367517241,1750840247834,-460.0,0.00019334,2]
[367517242,1750840247844,-2535.9,0.00019334,2]
[367517243,1750840247853,-724.67,0.00019334,2]
[367517244,1750840247863,-606.63,0.00019335,2]
[367517245,1750840247874,-460.0,0.00019335,2]
[367517246,1750840247884,-518.73,0.00019335,2]
[367517247,1750840247893,-542.7,0.00019335,2]
[367517248,1750840247903,-7498.48,0.00019335,2]
[367517249,1750840247913,-494.56,0.00019335,2]
[367517250,1750840247923,-938.35,0.00019335,2]
[367517251,1750840247933,-460.0,0.00019336,2]
[367517252,1750840247944,-693.84,0.00019336,2]
[367517253,1750840247954,-460.0,0.00019336,2]
[367517254,1750840247964,-486.8,0.00019336,2]
[367517255,1750840247973,-4900.23,0.00019336,2]
[367517256,1750840247982,-533.08,0.00019336,2]
[367517257,1750840247992,-513.75,0.00019336,2]
[367517258,1750840248001,-460.0,0.00019336,2]
[367517259,1750840248011,-460.0,0.00019336,2]
[367517260,1750840248020,-460.0,0.00019338,2]
[367517261,1750840248030,-2015.18560391,0.00019348,2]
[367517262,1750840248040,-421.4954312,0.00019369,2]
[367517263,1750840248050,-309.2027498,0.00019399,2]
[367517264,1750840248062,-153.0,0.00019399,2]
[367517265,1750840248071,-153.0,0.00019399,2]
[367517266,1750840248081,-153.0,0.00019399,2]
[367517267,1750840248091,-215.0738,0.00019455,2]
[367517268,1750840248101,-421.4954312,0.00019484,2]
[367517269,1750840248111,-895.0,0.00019497,2]
[367517270,1750840248121,-2015.18560391,0.0001959,2]
[367517271,1750840248131,-151.0,0.000196,2]
[367517272,1750840248141,-490.69,0.00019608,2]
[367517273,1750840248150,-1865.62,0.00019608,2]
[367517274,1750840248160,-677.74,0.00019608,2]
[367517275,1750840248170,-2993.54,0.00019608,2]
[367517276,1750840248180,-460.0,0.00019608,2]
[367517277,1750840248189,-460.0,0.00019608,2]
[367517278,1750840248199,-2535.9,0.00019608,2]
[367517279,1750840248208,-724.67,0.00019608,2]
[367517280,1750840248218,-66143.00705,0.00019608,2]
[367517281,1750840248227,-606.63,0.00019609,2]
[367517282,1750840248238,-460.0,0.00019609,2]
[367517283,1750840248250,-518.73,0.00019609,2]
[367517284,1750840248260,-542.7,0.00019609,2]
[367517285,1750840248270,-3629.41656151,0.00019609,2]
[367517286,1750840248285,-632.83171434,0.00019609,2]
[367517287,1750840251523,152.270095,0.00023,30]
[367517293,1750840292184,200.0,0.00023172,120]
[367517391,1750840491842,152.270095,0.00023,30]
[367517394,1750840518971,-197.0,0.00016173,2]
[367517584,1750840831083,200.0,0.00024318,120]
[367517590,1750840923498,30523.0,0.00022,30]
[367517593,1750840948711,159.806349,0.00013699,2]
[367517595,1750841092381,152.270095,0.00023,30]
[367517596,1750841133542,13756.47156968,0.00015868,2]
[367517597,1750841133566,5925.19616752,0.00015868,2]
[367517694,1750841236119,170.546888,0.00015996,2]
[367517695,1750841236305,170.546888,0.00015996,120]
[367517734,1750841298744,3038.87738335,0.000161,2]
[367517822,1750841432411,-398.36095677,0.00016768,2]
[367517824,1750841432422,-300.0,0.00016865,2]
[367517827,1750841432433,-300.0,0.00016865,2]
[367517829,1750841432443,-300.0,0.00016865,2]
[367517831,1750841432453,-1200.0,0.00016865,2]
[367517833,1750841432462,-1200.0,0.00016866,2]
[367517835,1750841432472,-460.0,0.00016866,2]
[367517837,1750841432482,-460.0,0.00016866,2]
[367517839,1750841432491,-591.26,0.00016867,2]
[367517841,1750841432501,-2749.87,0.00016867,2]
[367517843,1750841432510,-460.0,0.00016867,2]
[367517845,1750841432520,-460.0,0.00016867,2]
[367517847,1750841432530,-460.0,0.00016867,2]
[367517849,1750841432539,-460.0,0.00016867,2]
[367517852,1750841432548,-828.92,0.00016867,2]
[367517853,1750841432558,-2754.45,0.00016867,2]
[367517854,1750841432567,-2119.2,0.00016867,2]
[367517855,1750841432576,-460.0,0.00016867,2]
[367517856,1750841432586,-460.0,0.00016867,2]
[367517857,1750841432595,-460.0,0.00016867,2]
[367517858,1750841432605,-460.0,0.00016867,2]
[367517859,1750841432614,-460.0,0.00016867,2]
[367517860,1750841432623,-460.0,0.00016867,2]
[367517861,1750841432633,-460.0,0.00016867,2]
[367517862,1750841432642,-460.0,0.00016867,2]
[367517863,1750841432653,-460.0,0.00016867,2]
[367517864,1750841432664,-1804.43,0.00016867,2]
[367517865,1750841432673,-460.0,0.00016867,2]
[367517866,1750841432684,-460.0,0.00016867,2]
[367517867,1750841432693,-460.0,0.00016867,2]
[367517868,1750841432704,-460.0,0.00016867,2]
[367517869,1750841432714,-656.18,0.00016867,2]
[367517870,1750841432725,-460.0,0.00016867,2]
[367517871,1750841432735,-460.0,0.00016867,2]
[367517872,1750841432745,-2351.99,0.00016867,2]
[367517873,1750841432754,-460.0,0.00016867,2]
[367517874,1750841432764,-460.0,0.00016868,2]
[367517875,1750841432774,-460.0,0.00016868,2]
[367517876,1750841432783,-460.0,0.00016868,2]
[367517877,1750841432794,-460.0,0.00016868,2]
[367517878,1750841432803,-460.0,0.00016868,2]
[367517879,1750841432813,-460.0,0.00016868,2]
[367517880,1750841432822,-885.96,0.00016868,2]
[367517881,1750841432832,-460.0,0.00016868,2]
[367517882,1750841432841,-460.0,0.00016868,2]
[367517883,1750841432851,-375.16,0.00016868,2]
[367517884,1750841432861,-460.0,0.00016868,2]
[367517885,1750841432870,-460.0,0.00016868,2]
[367517886,1750841432880,-460.0,0.00016868,2]
[367517887,1750841432889,-606.04,0.00016868,2]
[367517888,1750841432899,-460.0,0.00016868,2]
[367517889,1750841432908,-384.52277001,0.00016868,2]
[367517890,1750841432918,-460.0,0.00016868,2]
[367517891,1750841432927,-460.0,0.00016868,2]
[367517892,1750841432936,-344.94354752,0.00016868,2]
[367517893,1750841432946,-460.0,0.00016868,2]
[367517894,1750841432956,-460.0,0.00016868,2]
[367517895,1750841432966,-570.15943089,0.00016868,2]
[367517896,1750841432975,-460.0,0.00016868,2]
[367517897,1750841432985,-460.0,0.00016868,2]
[367517898,1750841432995,-555.64,0.00016868,2]
[367517899,1750841433004,-460.0,0.00016868,2]
[367517900,1750841433014,-460.0,0.00016868,2]
[367517901,1750841433023,-5803.34,0.00016868,2]
[367517902,1750841433033,-460.0,0.00016868,2]
[367517903,1750841433043,-460.0,0.00016868,2]
[367517904,1750841433052,-460.0,0.00016868,2]
[367517905,1750841433062,-460.0,0.00016868,2]
[367517906,1750841433071,-460.0,0.00016868,2]
[367517907,1750841433081,-460.0,0.00016868,2]
[367517908,1750841433091,-460.0,0.00016868,2]
[367517909,1750841433100,-400.0,0.00016868,2]
[367517911,1750841433110,-480.18,0.00016868,2]
[367517912,1750841433119,-460.0,0.00016868,2]
[367517913,1750841433130,-493.36,0.00016868,2]
[367517915,1750841433140,-460.0,0.00016868,2]
[367517917,1750841433151,-460.0,0.00016868,2]
[367517919,1750841433161,-460.0,0.00016868,2]
[367517921,1750841433171,-460.0,0.00016868,2]
[367517922,1750841433180,-460.0,0.0001687,2]
[367517923,1750841433191,-460.0,0.0001687,2]
[367517924,1750841433200,-460.0,0.0001687,2]
[367517925,1750841433210,-180.04,0.0001687,2]
[367517926,1750841433221,-460.0,0.0001687,2]
[367517927,1750841433232,-460.0,0.0001687,2]
[367517928,1750841433242,-2413.92,0.0001687,2]
[367517929,1750841433252,-600.44,0.0001687,2]
[367517930,1750841433263,-460.0,0.0001687,2]
[367517931,1750841433274,-460.0,0.0001687,2]
[367517932,1750841433283,-460.0,0.0001687,2]
[367517933,1750841433293,-1643.11,0.0001687,2]
[367517935,1750841433303,-418.37,0.0001687,2]
[367517937,1750841433312,-543.01,0.0001687,2]
[367517939,1750841433322,-460.0,0.0001687,2]
[367517942,1750841433340,-1166.37672763,0.0001687,2]
[367518042,1750841438243,-819.63327237,0.0001687,2]
[367518043,1750841438254,-532.52,0.00016871,2]
[367518044,1750841438264,-924.6,0.00016871,2]
[367518045,1750841438275,-460.0,0.00016871,2]
[367518046,1750841438286,-4935.68,0.00016871,2]
[367518047,1750841438296,-857.61,0.00016871,2]